fUSD/lending_fUSD_20250502
["ID","MTS","AMOUNT","RATE_DAILY","PERIOD"]
[359585374,1746151851628,-457.11,0.00035616,11]
[359585375,1746151851637,-455.91,0.00035616,11]
[359585376,1746151851647,-450.0,0.00035616,11]
[359585377,1746151851658,-450.0,0.00035616,11]
[359585378,1746151851669,-450.0,0.00035616,11]
[359585379,1746151851678,-717.09,0.00035616,11]
[359585380,1746151851689,-450.0,0.00035616,11]
[359585381,1746151851699,-450.0,0.00035616,11]
[359585382,1746151851709,-450.0,0.00035616,11]
[359585383,1746151851719,-450.0,0.00035616,11]
[359585384,1746151851730,-1037.63,0.00035616,11]
[359585385,1746151851740,-450.0,0.00035616,11]
[359585386,1746151851749,-450.0,0.00035616,11]
[359585387,1746151851759,-450.0,0.00035616,11]
[359585388,1746151851769,-450.0,0.00035616,11]
[359585389,1746151851779,-1413.67,0.00035616,11]
[359585390,1746151851789,-450.0,0.00035616,11]
[359585391,1746151851799,-450.0,0.00035616,11]
[359585392,1746151851808,-699.02,0.00035616,11]
[359585393,1746151851818,-450.0,0.00035616,11]
[359585394,1746151851828,-450.0,0.00035616,11]
[359585395,1746151851837,-450.0,0.00035616,11]
[359585396,1746151851847,-450.0,0.00035616,11]
[359585397,1746151851858,-450.0,0.00035616,11]
[359585398,1746151851868,-450.0,0.00035616,11]
[359585399,1746151851879,-1714.0,0.00035616,14]
[359585400,1746151851890,-1714.0,0.00035616,14]
[359585401,1746151851901,-450.0,0.00035616,11]
[359585402,1746151851911,-1074.76,0.00035616,11]
[359585403,1746151851921,-501.76,0.00035616,11]
[359585404,1746151851933,-311.89429301,0.00035616,11]
[359585405,1746151851942,-450.0,0.00035616,11]
[359585406,1746151851951,-450.0,0.00035616,11]
[359585407,1746151851961,-1714.0,0.00035616,14]
[359585408,1746151851973,-1714.0,0.00035616,14]
[359585409,1746151851982,-1714.0,0.00035616,14]
[359585410,1746151851994,-450.0,0.00035616,11]
[359585411,1746151852004,-1714.0,0.00035616,14]
[359585412,1746151852013,-1714.0,0.00035616,14]
[359585413,1746151852023,-1714.0,0.00035616,14]
[359585414,1746151852032,-1714.0,0.00035616,14]
[359585415,1746151852042,-1714.0,0.00035616,14]
[359585416,1746151852051,-1714.0,0.00035616,14]
[359585417,1746151852062,-1714.0,0.00035616,14]
[359585418,1746151852072,-1714.0,0.00035616,14]
[359585419,1746151852084,-1714.0,0.00035616,14]
[359585420,1746151852094,-450.0,0.00035616,11]
[359585421,1746151852104,-1714.0,0.00035616,14]
[359585422,1746151852115,-1714.0,0.00035616,14]
[359585423,1746151852125,-450.0,0.00035616,11]
[359585424,1746151852135,-1714.0,0.00035616,14]
[359585425,1746151852146,-450.0,0.00035616,11]
[359585426,1746151852156,-1714.0,0.00035616,14]
[359585427,1746151852167,-1714.0,0.00035616,14]
[359585428,1746151852176,-450.0,0.00035616,11]
[359585429,1746151852187,-1714.0,0.00035616,14]
[359585430,1746151852198,-1714.0,0.00035616,14]
[359585431,1746151852209,-450.0,0.00035616,11]
[359585432,1746151852220,-1714.0,0.00035616,14]
[359585433,1746151852230,-975.48,0.00035616,11]
[359585434,1746151852241,-220.87125325,0.00035616,11]
[359585435,1746151852250,-672.42,0.00035616,11]
[359585436,1746151852261,-1714.0,0.00035616,14]
[359585437,1746151852271,-1714.21375232,0.00035616,14]
[359585438,1746151852282,-152.009499,0.00035616,7]
[359585439,1746151852292,-1061.51,0.00035616,11]
[359585440,1746151852302,-479.40318502,0.00035616,11]
[359585441,1746151852312,-1417.08,0.00035616,11]
[359585442,1746151852322,-500.0,0.00035616,11]
[359585443,1746151852331,-450.0,0.00035616,11]
[359585444,1746151852341,-450.0,0.00035616,11]
[359585445,1746151852351,-526.05,0.00035616,11]
[359585446,1746151852361,-685.510823,0.00035616,7]
[359585447,1746151852371,-450.0,0.00035616,11]
[359585448,1746151852380,-479.68894796,0.00035616,11]
[359585449,1746151852388,-685.510823,0.00035616,7]
[359585450,1746151852397,-450.0,0.00035616,11]
[359585451,1746151852407,-450.0,0.00035616,11]
[359585452,1746151852416,-847.75,0.00035616,11]
[359585453,1746151852425,-614.72,0.00035616,11]
[359585454,1746151852434,-450.0,0.00035616,11]
[359585455,1746151852443,-151.0,0.00035616,7]
[359585456,1746151852452,-450.0,0.00035616,11]
[359585457,1746151852461,-884.53,0.00035616,11]
[359585458,1746151852470,-450.0,0.00035616,11]
[359585459,1746151852480,-450.0,0.00035616,11]
[359585460,1746151852488,-450.0,0.00035616,11]
[359585461,1746151852497,-450.0,0.00035616,11]
[359585462,1746151852506,-153.738796,0.00035616,7]
[359585463,1746151852516,-603.42,0.00035616,11]
[359585464,1746151852526,-450.0,0.00035616,11]
[359585465,1746151852535,-450.0,0.00035616,11]
[359585466,1746151852544,-450.0,0.00035616,11]
[359585467,1746151852555,-1406.04,0.00035616,11]
[359585468,1746151852564,-450.0,0.00035616,11]
[359585469,1746151852574,-462.05,0.00035616,11]
[359585470,1746151852584,-255.88549319,0.00035616,11]
[359585471,1746151852593,-446.35235035,0.00035616,11]
[359585472,1746151852603,-450.0,0.00035616,11]
[359585473,1746151852613,-450.0,0.00035616,11]
[359585474,1746151852622,-450.0,0.00035616,11]
[359585475,1746151852631,-541.41,0.00035616,11]
[359585476,1746151852641,-4268.3,0.00035616,11]
[359585477,1746151852651,-478.97,0.00035616,11]
[359585478,1746151852660,-594.522876,0.00035616,7]
[359585479,1746151852670,-362.719027,0.00035616,7]
[359585480,1746151852680,-450.0,0.00035616,11]
[359585481,1746151852689,-151.0,0.00035616,7]
[359585482,1746151852699,-450.0,0.00035616,11]
[359585483,1746151852708,-496.84,0.00035616,11]
[359585484,1746151852718,-500.71,0.00035616,11]
[359585485,1746151852728,-522.68,0.00035616,11]
[359585486,1746151852738,-500.0,0.00035616,11]
[359585487,1746151852747,-627.10754496,0.00035616,11]
[359585488,1746151852756,-594.522876,0.00035616,7]
[359585489,1746151852765,-859.92,0.00035616,11]
[359585490,1746151852775,-362.719027,0.00035616,7]
[359585491,1746151852784,-227.119651,0.00035616,7]
[359585492,1746151852794,-450.0,0.00035616,11]
[359585493,1746151852803,-1823.55,0.00035616,11]
[359585494,1746151852813,-677.44,0.00035616,11]
[359585495,1746151852822,-450.0,0.00035616,11]
[359585496,1746151852831,-151.0,0.00035616,7]
[359585497,1746151852841,-1356.12,0.00035616,11]
[359585498,1746151852850,-571.66696018,0.00035616,11]
[359585499,1746151852860,-822.62,0.00035616,11]
[359585500,1746151852870,-526.08,0.00035616,11]
[359585501,1746151852880,-450.0,0.00035616,11]
[359585502,1746151852890,-431.22056157,0.00035616,11]
[359585503,1746151852901,-450.0,0.00035616,11]
[359585504,1746151852911,-450.0,0.00035616,11]
[359585505,1746151852921,-787.48,0.00035616,11]
[359585506,1746151852931,-476.81,0.00035616,11]
[359585507,1746151852941,-450.0,0.00035616,11]
[359585508,1746151852951,-481.00010173,0.00035616,11]
[359585509,1746151852961,-450.0,0.00035616,11]
[359585510,1746151852971,-646.31,0.00035616,11]
[359585511,1746151852980,-450.0,0.00035616,11]
[359585512,1746151852990,-450.0,0.00035616,11]
[359585513,1746151853001,-1674.00188885,0.00035616,11]
[359585514,1746151854009,-500.0,0.00019985,2]
[359585515,1746151854019,-140.42811115,0.00035616,11]
[359585516,1746151854028,-186.40856321,0.00035616,11]
[359585517,1746151854040,-263.59143679,0.00035616,11]
[359585518,1746151854050,-221.28556321,0.00035616,11]
[359585519,1746151855230,-157.3576857,0.000199,2]
[359585520,1746151855241,-500.0,0.00019985,2]
[359585521,1746151855251,-500.0,0.00019985,2]
[359585522,1746151855261,-500.0,0.00019985,2]
[359585523,1746151855271,-500.0,0.00019985,2]
[359585524,1746151855283,-500.0,0.00019985,2]
[359585525,1746151855293,-500.0,0.00019985,2]
[359585526,1746151855303,-500.0,0.00019985,2]
[359585527,1746151855313,-500.0,0.00019985,2]
[359585528,1746151855322,-500.0,0.00019985,2]
[359585529,1746151855332,-500.0,0.00019985,2]
[359585530,1746151855342,-500.0,0.00019985,2]
[359585531,1746151855352,-500.0,0.00019985,2]
[359585532,1746151855361,-500.0,0.00019985,2]
[359585533,1746151855371,-500.0,0.00019985,2]
[359585534,1746151855381,-500.0,0.00019985,2]
[359585535,1746151855391,-500.0,0.00019985,2]
[359585536,1746151855400,-520.59616835,0.00019985,2]
[359585537,1746151855410,-500.0,0.00019985,2]
[359585538,1746151855420,-500.0,0.00019985,2]
[359585539,1746151855432,-500.0,0.00019985,2]
[359585540,1746151855442,-500.0,0.00019985,2]
[359585541,1746151855453,-500.0,0.00019985,2]
[359585542,1746151855463,-358.99789782,0.00022685,2]
[359585543,1746151855473,-191.11386962,0.00024657,2]
[359585544,1746151855483,-216.73692663,0.00024657,2]
[359585545,1746151855494,-1906.58953897,0.0003,4]
[359585546,1746151855503,-1379.86931377,0.00033603,2]
[359585547,1746151855513,-583.95,0.00035616,11]
[359585548,1746151855523,-450.0,0.00035616,11]
[359585549,1746151855533,-1074.6,0.00035616,11]
[359585550,1746151855543,-450.0,0.00035616,11]
[359585551,1746151855552,-500.0,0.00035616,11]
[359585552,1746151855562,-501.13269856,0.00035616,11]
[359585553,1746151855572,-450.0,0.00035616,11]
[359585554,1746151855582,-450.0,0.00035616,11]
[359585555,1746151855591,-2169.08845182,0.00035616,11]
[359585556,1746151855673,-1390.23154818,0.00035616,11]
[359585557,1746151855684,-450.0,0.00035616,11]
[359585558,1746151855696,-488.67,0.00035616,11]
[359585559,1746151855707,-1341.88,0.00035616,11]
[359585560,1746151855716,-450.0,0.00035616,11]
[359585561,1746151855726,-450.0,0.00035616,11]
[359585562,1746151855736,-3007.13,0.00035616,11]
[359585563,1746151855746,-450.0,0.00035616,11]
[359585564,1746151855756,-892.78,0.00035616,11]
[359585565,1746151855766,-564.69,0.00035616,11]
[359585566,1746151855776,-450.0,0.00035616,11]
[359585567,1746151855786,-450.0,0.00035616,11]
[359585568,1746151855796,-853.0,0.00035616,11]
[359585569,1746151855806,-1000.0,0.00035616,11]
[359585570,1746151855815,-1148.64,0.00035616,11]
[359585571,1746151855824,-400.06377176,0.00035616,11]
[359585572,1746151855834,-626.34,0.00035616,11]
[359585573,1746151855844,-450.0,0.00035616,11]
[359585574,1746151855854,-459.27,0.00035616,11]
[359585575,1746151855864,-450.0,0.00035616,11]
[359585576,1746151855874,-450.0,0.00035616,11]
[359585577,1746151855884,-450.0,0.00035616,11]
[359585578,1746151855894,-450.0,0.00035616,11]
[359585579,1746151855904,-450.0,0.00035616,11]
[359585580,1746151855914,-151.0,0.00035616,7]
[359585581,1746151855924,-450.0,0.00035616,11]
[359585582,1746151855934,-202.34872869,0.00035616,11]
[359585583,1746151855944,-808.18,0.00035616,11]
[359585584,1746151855954,-1058.81,0.00035616,11]
[359585585,1746151855965,-702.0,0.00035616,11]
[359585586,1746151855974,-2975.6725924,0.00035616,11]
[359585587,1746151855986,-34.6074076,0.00035616,11]
[359585588,1746151855996,-450.0,0.00035616,11]
[359585589,1746151856006,-533.22250228,0.00035616,11]
[359585590,1746151856015,-450.0,0.00035616,11]
[359585591,1746151856026,-450.0,0.00035616,11]
[359585592,1746151856035,-450.0,0.00035616,11]
[359585593,1746151856045,-460.57,0.00035616,11]
[359585594,1746151856055,-450.0,0.00035616,11]
[359585595,1746151856065,-507.4,0.00035616,11]
[359585596,1746151856074,-450.0,0.00035616,11]
[359585597,1746151856084,-871.44,0.00035616,11]
[359585598,1746151856094,-450.0,0.00035616,11]
[359585599,1746151856104,-505.57,0.00035616,11]
[359585600,1746151856114,-450.0,0.00035616,11]
[359585601,1746151856124,-271.38111195,0.00035616,11]
[359585602,1746151856136,-178.61888805,0.00035616,11]
[359585603,1746151856147,-519.45,0.00035616,11]
[359585604,1746151856158,-844.97,0.00035616,11]
[359585605,1746151856169,-11180.54094804,0.00035616,11]
[359585606,1746151856540,-157.35768566,0.00022868,2]
[359585607,1746151856549,-150.0,0.00035591,2]
[359585608,1746151856559,-150.0,0.00035591,2]
[359585609,1746151856569,-11799.01896139,0.00035616,11]
[359585610,1746151856820,-1506.22667776,0.00035616,11]
[359585611,1746151856842,-150.0,0.00035591,2]
[359585612,1746151856851,-1040.24130225,0.00035616,11]
[359585613,1746151858319,-150.0,0.00035591,2]
[359585614,1746151858328,-115.93211056,0.00035616,11]
[359585615,1746151858337,-879.96,0.00035616,11]
[359585616,1746151858347,-198.04898131,0.00035616,11]
[359585617,1746151858356,-450.0,0.00035616,11]
[359585618,1746151858368,-142.05890813,0.00035616,11]
[359585620,1746151959489,3741.05509357,0.00032877,60]
[359585621,1746152020709,2000.0,0.00032877,60]
[359585629,1746152167913,1465.355748,7.945e-05,2]
[359585630,1746152194786,-2277.05169,0.00019682,2]
[359585631,1746152194811,-772.94831,0.00019782,2]
[359585633,1746152308763,250.0,0.00017,2]
[359585634,1746152309823,284.644252,0.00019,2]
[359585635,1746152309846,15.355748,0.00019,2]
[359585636,1746152364652,501.48900671,0.00032877,60]
[359585637,1746152372994,374.90695574,0.00032876,60]
[359585639,1746152711301,1264.68209342,0.000154,2]
[359585640,1746152728999,786.99931051,0.00011,2]
[359585641,1746152751050,200.29412761,0.00015323,2]
[359585642,1746152757292,486.96703181,6.94e-05,2]
[359585643,1746152832343,1576.6756636,0.00015,2]
[359585644,1746152854984,267.59,0.00027081,120]
[359585645,1746152869024,154.35594434,0.00028,120]
[359585647,1746152885709,2081.0,0.00032877,60]
[359585648,1746152899281,297.22129455,0.000125,2]
[359585649,1746152899312,805.34125131,0.000135,2]
[359585650,1746152906971,1867.95542566,0.0001,2]
[359585651,1746152916079,216.5402953,0.0001,2]
[359585660,1746152918261,1384.84456779,0.000149,2]
[359585661,1746152927516,3616.27077225,0.00013368,2]
[359585670,1746153031953,-165.84178342,0.00019532,2]
[359585671,1746153031964,-165.84178341,0.00019582,2]
[359585672,1746153031973,-196.61643318,0.0001961,2]
[359585673,1746153032007,-919.3999996,0.0001961,2]
[359585674,1746153032115,-309.97764752,0.0001961,2]
[359585675,1746153032124,-90.02235248,0.00019621,2]
[359585676,1746153032136,-109.97764752,0.00019621,2]
[359585677,1746153032145,-1200.0,0.0001968,2]
[359585678,1746153032154,-300.0,0.0001968,2]
[359585679,1746153032164,-352.98945305,0.00019681,2]
[359585680,1746153032173,-500.0,0.00019681,2]
[359585681,1746153032184,-477.03289943,0.00019681,2]
[359585682,1746153032195,-22.96710057,0.00019681,2]
[359585683,1746153032204,-500.0,0.00019681,2]
[359585684,1746153032214,-500.0,0.00019681,2]
[359585685,1746153032223,-500.0,0.00019681,2]
[359585686,1746153032233,-500.0,0.00019681,2]
[359585687,1746153032243,-500.0,0.00019681,2]
[359585688,1746153032252,-500.0,0.00019681,2]
[359585689,1746153032261,-500.0,0.00019681,2]
[359585690,1746153032271,-500.0,0.00019681,2]
[359585691,1746153032280,-500.0,0.00019681,2]
[359585692,1746153032290,-500.0,0.00019681,2]
[359585693,1746153032299,-500.0,0.00019681,2]
[359585694,1746153032308,-500.0,0.00019681,2]
[359585695,1746153032319,-500.0,0.00019681,2]
[359585696,1746153032329,-500.0,0.00019681,2]
[359585697,1746153032340,-500.0,0.00019681,2]
[359585698,1746153032350,-500.0,0.00019681,2]
[359585699,1746153032359,-500.0,0.00019681,2]
[359585700,1746153032369,-500.0,0.00019681,2]
[359585701,1746153032379,-500.0,0.00019681,2]
[359585702,1746153032389,-500.0,0.00019681,2]
[359585704,1746153032399,-500.0,0.00019681,2]
[359585706,1746153032408,-500.0,0.00019681,2]
[359585708,1746153032417,-500.0,0.00019681,2]
[359585709,1746153032427,-500.0,0.00019681,2]
[359585710,1746153032436,-500.0,0.00019681,2]
[359585712,1746153032447,-500.0,0.00019681,2]
[359585714,1746153032457,-500.0,0.00019681,2]
[359585716,1746153032467,-500.0,0.00019681,2]
[359585718,1746153032478,-500.0,0.00019681,2]
[359585721,1746153032488,-500.0,0.00019681,2]
[359585723,1746153032498,-500.0,0.00019681,2]
[359585724,1746153032507,-408.16169867,0.00019681,2]
[359585725,1746153032517,-500.0,0.00019681,2]
[359585726,1746153032527,-500.0,0.00019681,2]
[359585727,1746153032538,-500.0,0.00019681,2]
[359585728,1746153032548,-500.0,0.00019681,2]
[359585729,1746153032558,-500.0,0.00019681,2]
[359585730,1746153032567,-190.75420617,0.00019681,2]
[359585731,1746153032582,-309.24579383,0.00019681,2]
[359585732,1746153032592,-500.0,0.00019681,2]
[359585733,1746153032602,-500.0,0.00019681,2]
[359585734,1746153032612,-500.0,0.00019681,2]
[359585735,1746153032625,-500.0,0.00019681,2]
[359585736,1746153032635,-500.0,0.00019681,2]
[359585737,1746153032644,-500.0,0.00019681,2]
[359585738,1746153032653,-500.0,0.00019681,2]
[359585739,1746153032663,-500.0,0.00019681,2]
[359585740,1746153032672,-500.0,0.00019681,2]
[359585741,1746153032897,-525.60459233,0.00019681,2]
[359585742,1746153032930,-500.0,0.00019681,2]
[359585743,1746153032940,-500.0,0.00019681,2]
[359585744,1746153032950,-500.0,0.00019681,2]
[359585745,1746153032959,-2470.92167384,0.00019682,2]
[359585746,1746153032971,-3216.73303828,0.00019682,2]
[359585747,1746153033000,-546.80026666,0.00019682,2]
[359585760,1746153038021,-68306.83200649,0.00019682,2]
[359585761,1746153038030,-504.52015062,0.0001975,2]
[359585762,1746153038040,-732.26901713,0.0001987,2]
[359585763,1746153038050,-256.42706988,0.000199,2]
[359585764,1746153038059,-11462.6149,0.000199,2]
[359585765,1746153038069,-165.0453395,0.000199,2]
[359585766,1746153038078,-207.4,0.00019953,2]
[359585767,1746153038088,-505.91755208,0.00019973,2]
[359585768,1746153038098,-567.91702704,0.00019973,2]
[359585769,1746153038107,-502.90965025,0.00019973,2]
[359585770,1746153038117,-500.0,0.00019973,2]
[359585771,1746153038126,-202.71833399,0.0002,2]
[359585772,1746153038135,-282631.63037842,0.0002,2]
[359585773,1746153038198,-968.48426381,0.0002,2]
[359585803,1746153040334,-22727.87885364,0.0002,2]
[359585804,1746153040346,-18551.55587281,0.0002,2]
[359585805,1746153040358,-15382.83039614,0.0002,2]
[359585806,1746153040389,-700.0,0.0002,2]
[359585829,1746153217061,202.70833166,0.00019998,5]
[359585831,1746153347287,229.84,0.00032877,60]
[359585833,1746153419710,245.31042597,0.0002,23]
[359585834,1746153467579,203.60069,0.0002,23]
[359585835,1746153614131,2000.0,0.0002,4]
[359585836,1746153639818,1141.82,0.00017387,2]
[359585837,1746153668863,424.04,0.0003,30]
[359585838,1746153677625,500.0,0.00019229,2]
[359585839,1746153678961,200.0,0.00019301,2]
[359585840,1746153767447,438.93,0.00019248,2]
[359585841,1746153815764,190.24083272,0.0002,23]
[359585842,1746153828669,1147.51,0.00019027,2]
[359585843,1746153866651,203.60069,0.0002,23]
[359585844,1746153914808,1500.0,0.00019178,2]
[359585845,1746153959585,165.03,0.00018904,2]
[359585846,1746154013345,1068.12,0.00018904,2]
[359585847,1746154037614,9966.98,0.00019056,2]
[359585848,1746154063162,250.0,0.00018904,2]
[359585849,1746154076037,166.55,0.00018893,2]
[359585850,1746154076426,166.55,0.0001894,2]
[359585851,1746154076678,166.55,0.00018988,2]
[359585852,1746154118690,250.0,0.00017,2]
[359585853,1746154119732,300.0,0.00019,2]
[359585854,1746154124972,1000.0,0.00018871,2]
[359585855,1746154145080,150.0,0.00018859,2]
[359585857,1746154201891,1368.95,0.00018896,2]
[359585861,1746154232153,-191.45630862,0.0001946,2]
[359585862,1746154232164,-250.0,0.0001948,2]
[359585863,1746154232175,-200.0,0.0001948,2]
[359585864,1746154232185,-197.67524088,0.000195,2]
[359585865,1746154232263,-230.12084337,0.000195,2]
[359585866,1746154232273,-200.0,0.0001951,2]
[359585867,1746154232282,-200.0,0.00019548,2]
[359585868,1746154232292,-1466.84,0.0001956,2]
[359585869,1746154232301,-1730.0,0.0001956,2]
[359585870,1746154232312,-150.0,0.00019616,2]
[359585871,1746154232322,-1141.82,0.00019651,2]
[359585872,1746154232331,-300.0,0.00019723,2]
[359585873,1746154232341,-588.81721612,0.00019724,2]
[359585874,1746154232351,-1200.0,0.00019724,2]
[359585875,1746154232361,-300.0,0.00019724,2]
[359585876,1746154232371,-956.56774351,0.00019725,2]
[359585877,1746154232382,-425.18333004,0.00019725,2]
[359585878,1746154232394,-426.07440614,0.00019725,2]
[359585879,1746154232405,-5720.000016,0.00019725,2]
[359585880,1746154232416,-7719.29338366,0.00019725,2]
[359585881,1746154232454,-8652.88112065,0.00019725,2]
[359585882,1746154232464,-1404.576,0.000198,2]
[359585883,1746154232474,-2619.1242,0.000198,2]
[359585884,1746154232483,-191.45630862,0.000198,2]
[359585885,1746154232493,-1018.4277,0.000198,2]
[359585886,1746154232503,-258.83,0.00019813,2]
[359585887,1746154232513,-585.96364343,0.00019892,2]
[359585888,1746154232524,-533.20635657,0.00019892,2]
[359585889,1746154232534,-500.0,0.00019899,2]
[359585890,1746154232543,-500.0,0.00019899,2]
[359585891,1746154232553,-500.0,0.00019899,2]
[359585892,1746154232563,-500.0,0.00019899,2]
[359585893,1746154232572,-643.3766291,0.00019899,2]
[359585895,1746154232582,-499.03407587,0.00019899,2]
[359585896,1746154232591,-193.20565636,0.00019899,2]
[359585897,1746154232601,-12076.88524826,0.000199,2]
[359585898,1746154232626,-452.08099452,0.000199,2]
[359585899,1746154232637,-162750.91835722,0.000199,2]
[359585900,1746154232647,-687.34,0.000199,2]
[359585901,1746154232657,-173.01149728,0.000199,2]
[359585902,1746154232666,-157.35768566,0.000199,2]
[359585903,1746154232676,-1311.84,0.000199,2]
[359585904,1746154232750,-5230.79450343,0.000199,2]
[359585908,1746154238462,-17253.44398962,0.000199,2]
[359585909,1746154238472,-1290.95436738,0.000199,2]
[359585910,1746154238481,-233264.89603127,0.000199,2]
[359585911,1746154238491,-191.50076142,0.000199,2]
[359585912,1746154238501,-168.12172246,0.000199,2]
[359585913,1746154238511,-495.13601848,0.000199,2]
[359585914,1746154238521,-1516.88760559,0.000199,2]
[359585915,1746154238531,-227.69896651,0.000199,2]
[359585916,1746154238540,-178.79,0.00019918,2]
[359585917,1746154238549,-166.66,0.00019948,2]
[359585918,1746154238559,-207.4,0.00019953,2]
[359585919,1746154238568,-2027.98,0.00019969,2]
[359585920,1746154238577,-914.85,0.00019969,2]
[359585921,1746154238586,-1281476.23977342,0.00019972,2]
[359585922,1746154238596,-512.81473976,0.00019973,2]
[359585923,1746154238605,-501.4800243,0.00019973,2]
[359585924,1746154238615,-500.91447543,0.00019973,2]
[359585925,1746154238624,-450.27093774,0.00019973,2]
[359585926,1746154238634,-164.9646902,0.00019973,2]
[359585927,1746154238643,-505.91755208,0.00019973,2]
[359585928,1746154238652,-500.0,0.00019973,2]
[359585929,1746154238662,-567.91702704,0.00019973,2]
[359585930,1746154238671,-6578.75381715,0.00019989,2]
[359585932,1746154238680,-311.93520587,0.00019999,2]
[359585934,1746154238689,-202.71833399,0.00019999,2]
[359585936,1746154238698,-3428986.35574851,0.0002,2]
[359585941,1746154240494,-1271.0636021,0.0002,2]
[359585942,1746154240706,-999.89332,0.0002,2]
[359585949,1746154246198,-3570.7164856,0.0002,2]
[359585950,1746154246211,-2291.00974343,0.0002,2]
[359585951,1746154246251,-645.75968916,0.0002,2]
[359585952,1746154246409,-1000.0,0.0002,2]
[359585953,1746154246515,-15680.57486744,0.0002,2]
[359585954,1746154246528,-52890.61875909,0.0002,2]
[359585955,1746154246539,-16330.3829492,0.0002,2]
[359585956,1746154246551,-280.45,0.0002,2]
[359585957,1746154246569,-1120.54835376,0.0002,2]
[359585958,1746154246582,-857.30599154,0.0002,2]
[359585959,1746154268225,356.263995,7.945e-05,2]
[359585960,1746154348644,170.44,0.00019178,2]
[359585961,1746154472337,167.05,0.0001553,2]
[359585962,1746154666550,1027.63,0.00017758,2]
[359585963,1746154822882,12020.79944967,0.0003287,60]
[359585964,1746154845138,-466.49,0.00019463,2]
[359585965,1746154852386,-33.51,0.00019463,2]
[359585966,1746154852410,-135.53,0.00019478,2]
[359585967,1746154857947,-321.89,0.00019478,2]
[359585968,1746154857969,-54.48137481,0.00019478,2]
[359585969,1746154864415,-191.2694,0.00019478,2]
[359585970,1746154868266,-184.71062023,0.00019478,2]
[359585971,1746154871668,-69.53860496,0.00019478,2]
[359585972,1746154871691,-86.67,0.00019478,2]
[359585973,1746154875033,-413.33,0.00019478,2]
[359585974,1746154875058,-126.34618744,0.00019478,2]
[359585975,1746154878925,-150.0,0.00019478,2]
[359585976,1746154885693,-98.03294466,0.00019478,2]
[359585977,1746154885717,-200.0,0.00019505,2]
[359585978,1746154885740,-16.05174585,0.00019532,2]
[359585979,1746154891830,-237.67912205,0.00019532,2]
[359585980,1746154895222,-46.2691321,0.00019532,2]
[359585981,1746154895245,-124.2808679,0.00019533,2]
[359585982,1746154900954,-38.64916303,0.00019533,2]
[359585983,1746154900975,-1129.9477036,0.00019533,2]
[359585984,1746154906496,-202.24479639,0.00019533,2]
[359585985,1746154910243,-369.43908333,0.00019533,2]
[359585986,1746154915913,-184.58000945,0.00019533,2]
[359585987,1746154919859,-549.36118791,0.00019533,2]
[359585988,1746154926918,-152.24300464,0.00019533,2]
[359585989,1746154931332,-31.81421468,0.00019533,2]
[359585990,1746154931356,-200.0,0.00019545,2]
[359585991,1746154931379,-186.44504305,0.00019558,2]
[359585992,1746154937590,-13.55495695,0.00019558,2]
[359585993,1746154937612,-157.57277676,0.00019558,2]
[359585994,1746154941552,-142.42722324,0.00019558,2]
[359585995,1746154941573,-187.52277676,0.00019559,2]
[359585996,1746154948072,-166.09,0.00019559,2]